bitfinex/quotes_ETHUSD_20250925
["timestamp","ask_amount","ask_price","bid_price","bid_amount"]
[1758760368364,3.0,4149.7,4149.6,0.792]
[1758760368581,3.0,4149.7,4149.6,3.20187083]
[1758760370463,3.0,4149.7,4149.6,3.06252791]
[1758760370663,10.10907665,4149.7,4149.6,3.06252791]
[1758760371176,7.10907665,4149.7,4149.6,3.06252791]
[1758760371372,0.12,4149.9,4149.8,2.40975468]
[1758760371595,11.27207665,4149.9,4149.8,2.40975468]
[1758760372602,11.27207665,4149.9,4149.8,3.20175468]
[1758760372966,11.51827665,4149.9,4149.8,3.20175468]
[1758760373366,11.27207665,4149.9,4149.8,3.20175468]
[1758760375703,11.51827665,4149.9,4149.8,3.20175468]
[1758760376007,11.27207665,4149.9,4149.8,3.20175468]
[1758760376907,7.22907665,4149.9,4149.8,3.67465468]
[1758760377083,0.12000001,4150.2,4150.1,2.40958049]
[1758760377279,14.27207666,4150.2,4150.1,2.40958049]
[1758760377682,11.27207666,4150.2,4150.1,2.40958049]
[1758760377986,11.51827666,4150.2,4149.9,0.792]
[1758760378376,11.51827666,4150.2,4149.9,3.20169499]
[1758760378572,11.51827666,4150.2,4150.1,2.40958049]
[1758760378772,11.51827666,4150.2,4150.0,2.40959389]
[1758760379114,2.40963855,4150.0,4149.2,0.002]
[1758760379272,7.10907665,4149.3,4149.2,0.002]
[1758760379468,11.15207665,4149.3,4149.2,0.002]
[1758760379705,11.87197665,4149.3,4149.2,0.002]
[1758760379907,11.96861824,4149.3,4149.2,0.002]
[1758760380310,14.3786633,4149.3,4149.2,0.002]
[1758760380544,11.96861824,4149.3,4149.2,0.002]
[1758760381364,14.3786633,4149.3,4149.2,0.002]
[1758760381844,11.96861824,4149.3,4149.2,0.002]
[1758760382436,14.96861824,4149.3,4149.2,0.002]
[1758760384645,14.49491824,4149.3,4149.2,0.002]
[1758760386319,10.45191824,4149.3,4149.2,0.002]
[1758760386518,2.008,4150.1,4149.7,2.40980151]
[1758760386732,10.10907665,4149.8,4149.7,2.40980151]
[1758760386931,7.10907665,4149.9,4149.7,0.4508]
[1758760387154,4.043,4149.8,4149.2,0.002]
[1758760387359,7.10907665,4149.3,4149.2,0.794]
[1758760387555,7.10907665,4149.3,4149.2,0.002]
[1758760387860,7.10907665,4149.3,4149.2,0.794]
[1758760388156,7.10907665,4149.3,4149.2,3.20410315]
[1758760389755,11.15207665,4149.3,4149.2,3.20410315]
[1758760389920,11.15207665,4149.3,4149.2,3.65490315]
[1758760390747,7.22907665,4149.5,4149.4,3.20198698]
[1758760390949,2.008,4150.4,4150.1,3.20158049]
[1758760391156,14.15207666,4150.2,4150.1,3.20158049]
[1758760391761,14.15207666,4150.2,4150.1,3.65238049]
[1758760391762,7.10907666,4150.2,4150.1,3.65238049]
[1758760391963,1e-08,4150.2,4150.1,3.87988049]
[1758760392163,1e-08,4150.2,4150.1,4.63124505]
[1758760394152,1e-08,4150.2,4150.1,3.32158049]
[1758760395937,0.23140001,4150.2,4150.1,3.20158049]
[1758760396136,1e-08,4150.2,4150.1,3.20158049]
[1758760396368,4.04300001,4150.2,4150.1,3.65558049]
[1758760396551,1e-08,4150.2,4150.1,3.88308049]
[1758760396759,1e-08,4150.2,4150.1,4.63476505]
[1758760398831,1e-08,4150.2,4150.1,3.32158049]
[1758760399059,0.23140001,4150.2,4150.1,3.32158049]
[1758760399260,0.23140001,4150.2,4150.1,3.20158049]
[1758760399961,0.23140001,4150.2,4150.1,0.792]
[1758760400150,0.67510001,4150.2,4150.1,0.792]
[1758760400633,0.67510001,4150.2,4150.0,2.40963704]
[1758760400840,0.7951,4150.1,4149.9,2.40969446]
[1758760401039,4.2744,4150.0,4149.9,3.20169446]
[1758760401259,4.043,4150.0,4149.9,3.20169446]
[1758760401662,4.043,4150.0,4149.9,0.792]
[1758760401840,4.2744,4150.0,4149.9,0.792]
[1758760402879,4.2744,4150.0,4149.9,3.20169661]
[1758760403377,4.2744,4150.0,4149.9,0.792]
[1758760405274,4.043,4150.0,4149.9,3.20169661]
[1758760405676,0.12,4150.1,4150.0,2.40963855]
[1758760405981,4.163,4150.1,4150.0,2.40963855]
[1758760407277,4.3944,4150.1,4149.9,3.20168271]
[1758760407779,4.3944,4150.1,4149.9,0.792]
[1758760407980,0.2314,4150.0,4149.9,0.792]
[1758760408186,0.2314,4150.0,4149.9,3.20169661]
[1758760408384,4.163,4150.1,4150.0,2.40963855]
[1758760408884,4.163,4150.1,4149.9,3.20169661]
[1758760408885,4.3944,4150.1,4149.9,0.792]
[1758760409085,4.3944,4150.1,4149.9,3.20168093]
[1758760409251,4.3944,4150.1,4150.0,2.40963855]
[1758760409454,4.163,4150.1,4150.0,2.40963855]
[1758760409753,0.12,4150.1,4150.0,3.20163855]
[1758760409954,1e-08,4150.2,4150.1,3.20158049]
[1758760410154,1e-08,4150.2,4150.1,3.65558049]
[1758760411655,1e-08,4150.2,4150.1,3.90717629]
[1758760411850,1e-08,4150.2,4150.1,3.88308049]
[1758760412073,1e-08,4150.2,4150.1,3.90717629]
[1758760412791,1e-08,4150.2,4150.1,3.67967629]
[1758760413292,1e-08,4150.2,4150.1,3.20158049]
[1758760414660,7.10716766,4150.2,4150.1,3.20158049]
[1758760418504,7.10716766,4150.2,4150.1,3.88308049]
[1758760418688,7.10716766,4150.2,4150.1,4.00308049]
[1758760418689,1e-08,4150.2,4150.1,4.00308049]
[1758760420303,1e-08,4150.2,4150.1,4.02717629]
[1758760420508,1e-08,4150.2,4150.1,18.52717629]
[1758760420682,1e-08,4150.2,4150.1,18.50308049]
[1758760426405,1e-08,4150.2,4150.1,18.27558049]
[1758760426603,1e-08,4150.2,4150.1,17.82158049]
[1758760426808,1e-08,4150.2,4150.1,18.27468049]
[1758760427004,1e-08,4150.2,4150.1,20.62236936]
[1758760427507,1e-08,4150.2,4150.1,20.38846936]
[1758760428076,1e-08,4150.2,4150.1,17.82158049]
[1758760428410,0.67550001,4150.2,4150.1,2.40958049]
[1758760428575,0.67550001,4150.2,4150.1,3.20158049]
[1758760430586,8.89977462,4150.2,4150.1,3.20158049]
[1758760431007,8.47047462,4150.2,4150.1,3.20158049]
[1758760432619,1e-08,4150.2,4150.1,3.20158049]
[1758760432919,1e-08,4150.2,4150.1,19.53362765]
[1758760433218,1e-08,4150.2,4150.1,23.57562765]
[1758760436306,1e-08,4150.2,4150.1,9.07562765]
[1758760436790,1e-08,4150.2,4150.1,23.57562765]
[1758760438526,1e-08,4150.2,4150.1,23.34172765]
[1758760439913,1e-08,4150.2,4150.1,8.84172765]
[1758760440445,1e-08,4150.2,4150.1,18.84662765]
[1758760440728,0.24780001,4150.2,4150.1,21.86258049]
[1758760440883,0.24780001,4150.2,4150.1,7.36258049]
[1758760441090,1e-08,4150.2,4150.1,3.99888049]
[1758760441326,1e-08,4150.2,4150.1,5.06793381]
[1758760441627,1e-08,4150.2,4150.1,5.04383801]
[1758760441782,1e-08,4150.2,4150.1,4.79893801]
[1758760441991,1e-08,4150.2,4150.1,5.04383801]
[1758760442186,1e-08,4150.7,4150.2,3.20152243]
[1758760442391,1e-08,4150.7,4150.6,3.32129022]
[1758760442585,1e-08,4150.7,4150.6,7.38638312]
[1758760442825,1e-08,4150.7,4150.6,22.53959022]
[1758760443037,1e-08,4150.7,4150.6,22.29469022]
[1758760443335,1e-08,4150.7,4150.6,24.25357637]
[1758760444223,0.24780001,4150.7,4150.6,3.32129022]
[1758760444386,0.69930001,4150.7,4150.6,3.32129022]
[1758760444992,0.24780001,4150.7,4150.6,3.32129022]
[1758760445189,1e-08,4150.7,4150.6,3.34538312]
[1758760445388,1e-08,4150.7,4150.6,3.90268312]
[1758760445608,1e-08,4150.7,4150.6,5.03389336]
[1758760445808,1e-08,4150.7,4150.6,19.53389336]
[1758760446039,1e-08,4150.7,4150.6,18.85659336]
[1758760446241,1e-08,4150.7,4150.6,17.82129022]
[1758760446432,1e-08,4150.7,4150.6,7.36229022]
[1758760446433,0.24780001,4150.7,4150.6,7.36229022]
[1758760446937,0.24780001,4150.7,4150.6,3.32129022]
[1758760447140,0.69930001,4150.7,4150.6,3.32129022]
[1758760447656,0.24780001,4150.7,4150.6,3.32129022]
[1758760447940,0.69930001,4150.7,4150.6,3.32129022]
[1758760448148,0.24780001,4150.7,4150.6,3.32129022]
[1758760448439,0.69930001,4150.7,4150.6,3.32129022]
[1758760448667,0.69930001,4150.7,4150.6,0.912]
[1758760448822,1e-08,4150.7,4150.6,3.32129022]
[1758760449015,1e-08,4150.7,4150.6,3.34538312]
[1758760450049,1e-08,4150.7,4150.6,3.77778312]
[1758760451916,1e-08,4150.7,4150.6,4.94238953]
[1758760452110,1e-08,4150.7,4150.6,5.03829663]
[1758760452547,1e-08,4150.7,4150.6,19.53829663]
[1758760456859,1e-08,4150.7,4150.6,19.30089663]
[1758760457245,1e-08,4150.7,4150.6,19.53829663]
[1758760459018,1e-08,4150.7,4150.6,19.30089663]
[1758760459721,1e-08,4150.7,4150.6,19.53829663]
[1758760460159,1e-08,4150.9,4150.7,0.792]
[1758760460379,1e-08,4150.9,4150.8,7.24117413]
[1758760460526,1e-08,4150.9,4150.8,7.92957413]
[1758760460725,1e-08,4150.9,4150.8,22.42957413]
[1758760461127,1e-08,4150.9,4150.8,21.74117413]
[1758760461462,1e-08,4150.9,4150.8,24.58346028]
[1758760461768,1e-08,4150.9,4150.8,24.82086028]
[1758760465665,1e-08,4150.9,4150.8,24.58346028]
[1758760466366,1e-08,4150.9,4150.8,24.13246028]
[1758760466930,1e-08,4150.9,4150.8,24.58346028]
[1758760469076,1e-08,4150.9,4150.8,20.09246028]
[1758760469281,0.66960001,4150.9,4150.8,20.94817413]
[1758760469449,0.66960001,4150.9,4150.8,6.44817413]
[1758760469649,0.66960001,4150.9,4150.8,7.24017413]
[1758760470260,0.66960001,4150.9,4150.8,3.32117413]
[1758760470465,8.89387462,4150.9,4150.8,6.56817413]
[1758760470677,8.89387462,4150.9,4150.8,7.36017413]
[1758760471361,8.89387462,4150.9,4150.8,3.32117413]
[1758760471760,8.89387462,4150.9,4150.8,2.52917413]
[1758760472088,8.89387462,4150.9,4150.8,3.20117413]
[1758760472860,8.45807462,4150.9,4150.8,3.20117413]
[1758760473644,8.89387462,4150.9,4150.8,0.792]
[1758760476092,8.89387462,4150.9,4150.8,3.20117413]
[1758760476613,8.89387462,4150.9,4150.8,0.792]
[1758760476792,8.89387462,4150.9,4150.6,0.12]
[1758760477105,0.12,4150.8,4150.1,0.122]
[1758760477312,0.6696,4150.7,4150.5,0.792]
[1758760477477,0.12,4150.8,4150.5,0.792]
[1758760477676,0.6696,4150.6,4150.2,0.792]
[1758760477870,4.2728,4150.5,4150.2,3.20151303]
[1758760478113,4.039,4150.5,4150.2,3.20152019]
[1758760478395,8.22427461,4150.3,4150.2,3.20152243]
[1758760478595,8.89387461,4150.3,4150.2,0.792]
[1758760479367,8.89387461,4150.3,4150.2,3.20152243]
[1758760480367,4.2728,4150.3,4150.2,3.20152243]
[1758760480594,8.22427461,4150.5,4150.4,3.20140632]
[1758760480904,12.49707461,4150.5,4150.4,3.20140632]
[1758760481106,12.93287461,4150.5,4150.4,0.792]
[1758760481614,12.93287461,4150.5,4150.4,3.20140632]
[1758760482115,12.93287461,4150.5,4150.4,0.792]
[1758760482492,12.93287461,4150.5,4150.1,2.53157452]
[1758760482493,12.93287461,4150.5,4150.1,0.002]
[1758760482685,13.05287461,4150.5,4150.1,0.002]
[1758760483504,15.46222939,4150.5,4150.1,0.002]
[1758760483701,13.05287461,4150.5,4150.1,0.002]
[1758760483905,12.93287461,4150.5,4150.1,0.002]
[1758760484107,2.40942769,4150.4,4150.1,0.002]
[1758760484306,2.40946489,4150.3,4150.1,0.002]
[1758760484524,4.039,4150.2,4150.1,0.002]
[1758760484925,4.6943,4150.2,4150.1,0.002]
[1758760487035,7.10382243,4150.2,4150.1,0.002]
[1758760488329,4.6943,4150.2,4150.1,0.002]
[1758760490744,0.6553,4150.2,4150.1,0.002]
[1758760491054,4.6953,4150.2,4150.1,0.002]
[1758760492448,4.2664,4150.2,4150.1,0.002]
[1758760492634,11.37492733,4150.2,4150.1,0.002]
[1758760493210,11.80382733,4150.2,4150.1,0.002]
[1758760494551,12.1816528,4150.2,4150.1,0.002]
[1758760494758,14.59117523,4150.2,4150.1,0.002]
[1758760495054,12.1816528,4150.2,4150.1,0.002]
[1758760496741,14.59117523,4150.2,4150.1,0.002]
[1758760496949,12.1816528,4150.2,4150.1,0.002]
[1758760498837,11.7527528,4150.2,4150.1,0.002]
[1758760499763,11.5263528,4150.2,4150.1,0.002]
[1758760499960,0.72463681,4150.5,4150.1,0.002]
[1758760500162,0.72463681,4150.5,4150.4,2.40940632]
[1758760500363,7.76363681,4150.5,4150.4,0.792]
[1758760500536,7.2654,4150.5,4150.4,0.792]
[1758760500736,7.2654,4150.5,4150.1,0.002]
[1758760500942,5.86501728,4150.4,4150.1,0.002]
[1758760501166,4.039,4150.3,4150.1,0.002]
[1758760501464,10.10852733,4150.2,4150.1,0.002]
[1758760501961,10.80122733,4150.2,4150.1,0.002]
[1758760502754,13.21074976,4150.2,4150.1,0.002]
[1758760503249,7.10852733,4149.7,4149.6,0.002]
[1758760503451,11.14752733,4149.7,4149.6,0.002]
[1758760504544,11.14752733,4149.7,4149.6,3.20387083]
[1758760504751,11.14752733,4149.7,4149.6,0.794]
[1758760508295,11.14752733,4149.7,4149.6,3.20387083]
[1758760508495,11.14752733,4149.7,4149.6,3.91267083]
[1758760512700,11.14752733,4149.7,4149.6,3.67317083]
[1758760514182,0.12,4150.1,4150.0,2.40963855]
[1758760514503,0.7246368,4150.5,4150.4,3.20140632]
[1758760514712,0.7246368,4150.5,4150.4,3.92420632]
[1758760514872,1e-08,4150.9,4150.5,0.792]
[1758760515073,1e-08,4150.9,4150.8,3.32117413]
[1758760515605,1e-08,4150.9,4150.8,4.06806587]
[1758760515805,1e-08,4150.9,4150.8,4.04397413]
[1758760516192,1e-08,4150.9,4150.8,18.54397413]
[1758760520074,1e-08,4150.9,4150.8,17.82117413]
[1758760521202,1e-08,4150.9,4150.8,20.68636028]
[1758760521512,1e-08,4150.9,4150.8,20.93526028]
[1758760523598,1e-08,4150.9,4150.8,20.21246028]
[1758760523989,1e-08,4150.9,4150.8,24.25046028]
[1758760524536,1e-08,4150.9,4150.8,9.75046028]
[1758760524693,1e-08,4150.9,4150.8,7.35917413]
[1758760525708,1e-08,4150.9,4150.8,7.83307413]
[1758760527198,1e-08,4150.9,4150.8,8.08197413]
[1758760527528,1e-08,4150.9,4150.8,7.35917413]
[1758760528240,1e-08,4150.9,4150.8,7.83307413]
[1758760528427,1e-08,4150.9,4150.8,8.94605682]
[1758760528633,1e-08,4150.9,4150.8,23.44605682]
[1758760528832,1e-08,4150.9,4150.8,22.97215682]
[1758760529430,1e-08,4150.9,4150.8,23.44605682]
[1758760529729,1e-08,4150.9,4150.8,23.69495682]
[1758760533051,1e-08,4150.9,4150.8,18.93415682]
[1758760533222,7.34252734,4150.9,4150.8,21.85817413]
[1758760534321,7.10852734,4150.9,4150.8,21.85817413]
[1758760535521,1e-08,4150.9,4150.8,21.85817413]
[1758760535724,1e-08,4150.9,4150.8,24.97226028]
[1758760537645,1e-08,4150.9,4150.8,24.85226028]
[1758760537827,1e-08,4151.2,4151.1,3.20100002]
[1758760538158,1e-08,4151.2,4151.1,7.23700002]
[1758760538325,1e-08,4151.2,4151.1,9.24781444]
[1758760538520,1e-08,4151.2,4151.1,23.86781444]
[1758760538716,1e-08,4151.2,4151.1,23.14501444]
[1758760538921,1e-08,4151.2,4151.1,23.02501444]
[1758760539155,1e-08,4151.2,4151.1,23.74781444]
[1758760539873,1e-08,4151.2,4151.1,26.74781444]
[1758760540020,1e-08,4151.9,4151.8,3.20059386]
[1758760540340,1e-08,4151.9,4151.8,7.79752012]
[1758760540674,1e-08,4151.9,4151.8,23.02032012]
[1758760544577,1e-08,4151.9,4151.8,26.02032012]
[1758760548486,1e-08,4151.9,4151.8,25.77142012]
[1758760548687,1e-08,4151.9,4151.8,21.26152012]
[1758760548984,1e-08,4151.9,4151.8,25.41652012]
[1758760549387,1e-08,4151.9,4151.8,18.38152012]
[1758760549594,0.70160001,4151.9,4151.8,17.02859386]
[1758760549984,0.70160001,4151.9,4151.8,21.06359386]
[1758760551399,0.70160001,4151.9,4151.8,21.85559386]
[1758760552193,0.70160001,4151.9,4151.8,15.412]
[1758760552371,0.70160001,4151.9,4151.6,2.40870625]
[1758760552573,8.2190532,4151.7,4151.6,2.40870625]
[1758760552768,8.9206532,4151.7,4151.5,2.40876383]
[1758760552969,0.7016,4151.6,4151.5,3.20076383]
[1758760553996,0.7016,4151.6,4151.5,0.792]
[1758760554493,4.7366,4151.6,4151.5,0.792]
[1758760554899,4.7366,4151.6,4151.1,0.12]
[1758760555114,8.2190532,4151.2,4151.1,0.912]
[1758760555531,8.9206532,4151.2,4151.1,0.912]
[1758760555735,12.9556532,4151.2,4149.6,2.008]
[1758760556017,2.40900917,4151.1,4150.3,2.40945211]
[1758760556185,2.52900917,4151.1,4150.4,0.12]
[1758760556384,2.40916004,4150.9,4150.4,0.12]
[1758760556616,2.52927673,4150.7,4150.1,0.002]
[1758760556909,2.40942818,4150.4,4150.1,0.002]
[1758760557211,8.2190532,4150.2,4150.1,0.002]
[1758760557603,8.9206532,4150.2,4150.1,0.002]
[1758760557773,0.7016,4150.2,4150.1,0.002]
[1758760558105,12.9556532,4150.2,4150.1,0.002]
[1758760558404,12.5030532,4150.2,4150.1,0.002]
[1758760558593,12.5030532,4150.2,4150.1,3.20358049]
[1758760558792,8.4680532,4150.2,4150.1,0.794]
[1758760558992,8.9206532,4150.2,4150.1,0.794]
[1758760559210,12.9556532,4150.2,4150.1,3.20358049]
[1758760560005,8.9206532,4150.2,4150.1,3.20358049]
[1758760560212,11.2190532,4150.6,4150.2,0.792]
[1758760560513,8.5880532,4151.0,4150.6,0.792]
[1758760560814,4.036,4150.7,4150.5,0.792]
[1758760561209,0.2492,4150.6,4150.5,3.20134827]
[1758760561810,0.6991,4150.6,4150.4,0.792]
[1758760562014,0.6991,4150.5,4150.4,0.792]
[1758760562236,0.6991,4150.5,4150.4,3.20140155]
[1758760562434,2.007,4151.2,4150.1,0.122]
[1758760562435,0.2492,4150.9,4150.7,0.792]
[1758760562643,4.036,4150.8,4150.7,3.20123217]
[1758760562943,4.2852,4150.8,4150.7,3.20123217]
[1758760563646,0.2492,4150.8,4150.7,3.20123217]
[1758760563950,3.12,4151.3,4151.1,0.792]
[1758760564117,4.4859,4151.2,4151.0,0.792]
[1758760564311,0.4499,4151.1,4151.0,0.792]
[1758760564511,0.4499,4151.1,4151.0,3.20105805]
[1758760564743,0.6991,4151.1,4151.0,3.20105805]
[1758760564907,0.6991,4151.1,4151.0,0.792]
[1758760565609,0.6991,4151.1,4150.8,0.792]
[1758760565805,0.6991,4151.0,4150.8,0.792]
[1758760566036,4.036,4150.9,4150.7,0.792]
[1758760566306,0.6991,4150.8,4150.5,0.792]
[1758760566531,0.6991,4150.7,4149.9,4.036]
[1758760566706,4.156,4150.6,4150.4,0.792]
[1758760566908,0.6991,4150.5,4150.2,2.40952224]
[1758760567135,0.6991,4150.4,4150.2,2.40952224]
[1758760567337,0.6991,4150.4,4150.3,0.792]
[1758760567556,0.4499,4150.4,4150.3,3.20146437]
[1758760567835,0.4499,4150.4,4150.1,0.002]
[1758760568022,4.4859,4150.3,4150.2,0.792]
[1758760568348,4.7351,4150.3,4150.2,3.20152243]
[1758760568936,4.7351,4150.3,4150.2,0.792]
[1758760569260,4.7351,4150.3,4150.1,0.002]
[1758760569537,0.12,4150.2,4150.1,0.002]
[1758760569759,2.52952243,4150.2,4150.1,0.002]
[1758760569956,3.22862243,4150.2,4150.1,0.002]
[1758760571049,0.8191,4150.2,4150.1,0.002]
[1758760571255,3.22862243,4150.2,4150.1,0.002]
[1758760571658,6.22862243,4150.2,4150.1,0.002]
[1758760571838,2.40981275,4149.7,4149.6,0.002]
[1758760572164,11.45281275,4149.7,4149.6,0.002]
[1758760572364,12.13141275,4149.7,4149.6,0.002]
[1758760572864,9.7216,4149.7,4149.6,0.002]
[1758760573035,12.13141275,4149.7,4149.6,0.002]
[1758760574528,9.7216,4149.7,4149.6,0.002]
[1758760574734,9.043,4149.7,4149.6,0.002]
[1758760574933,12.13141275,4149.7,4149.6,0.002]
[1758760576338,9.7216,4149.7,4149.6,0.002]
[1758760576533,12.13141275,4149.7,4149.6,0.002]
[1758760577352,29.99561279,4149.7,4149.6,0.002]
[1758760578171,30.37350903,4149.7,4149.6,0.002]
[1758760578948,29.99561279,4149.7,4149.6,0.002]
[1758760580585,20.36086439,4149.7,4149.6,0.002]
[1758760582255,20.73876136,4149.7,4149.6,0.002]
[1758760583384,20.36086439,4149.7,4149.6,0.002]
[1758760586278,2.41004506,4149.3,4149.2,0.002]
[1758760586483,14.6764967,4149.3,4149.2,0.002]
[1758760586679,14.6764967,4149.3,4149.1,0.022]
[1758760586680,5.53010315,4149.2,4149.1,0.022]
[1758760586883,8.22945164,4148.8,4148.7,0.002]
[1758760587078,14.67678715,4148.8,4148.7,0.002]
[1758760587482,14.92248715,4148.8,4148.7,0.002]
[1758760587900,12.51215164,4148.8,4148.7,0.002]
[1758760588477,12.26645164,4148.8,4148.7,0.002]
[1758760588890,14.92248715,4148.8,4148.7,0.002]
[1758760589310,15.30043009,4148.8,4148.7,0.002]
[1758760591087,12.64439458,4148.8,4148.7,0.002]
[1758760591279,12.26645164,4148.8,4148.7,0.4328]
[1758760592825,12.26645164,4148.8,4148.7,0.002]
[1758760593394,14.67678715,4148.8,4148.7,0.002]
[1758760593596,17.92248715,4148.8,4148.7,0.002]
[1758760593924,18.35538715,4148.8,4148.7,0.002]
[1758760594825,5.53039361,4148.7,4148.6,0.002]
[1758760595017,10.64001956,4148.4,4148.3,0.002]
[1758760595340,17.67801956,4148.4,4148.3,0.002]
[1758760595486,17.92371956,4148.4,4148.3,0.002]
[1758760595687,18.04475948,4148.4,4148.3,0.002]
[1758760595969,18.47765948,4148.4,4148.3,0.002]
[1758760597229,5.41062603,4148.3,4148.1,0.02]
[1758760597412,5.96352603,4148.3,4148.1,0.02]
[1758760597743,6.20922603,4148.3,4148.1,0.02]
[1758760598539,2.41068415,4148.2,4148.1,0.02]
[1758760598735,13.64031014,4147.9,4147.8,0.002]
[1758760599027,13.64031014,4147.9,4147.1,0.142]
[1758760599028,2.41109077,4147.6,4147.1,0.022]
[1758760599193,8.34945164,4147.4,4147.1,0.022]
[1758760599390,4.038,4147.3,4147.1,0.022]
[1758760599598,6.44920729,4147.3,4147.1,0.022]
[1758760599838,4.038,4147.3,4147.1,0.022]
[1758760604388,4.038,4147.3,4147.2,2.41326543]
[1758760604389,0.37809169,4147.3,4147.2,2.41326543]
[1758760604604,12.64554333,4147.3,4147.2,0.6678]
[1758760605270,12.64554333,4147.3,4147.2,0.4368]
[1758760605596,12.64554333,4147.3,4147.2,0.002]
[1758760605890,3.0,4147.2,4146.1,0.02]
[1758760606096,8.22945164,4146.2,4146.1,0.02]
[1758760606394,12.26745164,4146.2,4146.1,0.02]
[1758760607171,17.67929863,4146.2,4146.1,0.02]
[1758760607380,15.51705164,4146.2,4146.1,0.02]
[1758760607786,17.92889863,4146.2,4146.1,0.02]
[1758760608268,18.38919863,4146.2,4146.1,0.02]
[1758760608896,3.0,4146.1,4145.2,0.4348]
[1758760609083,8.22945164,4145.5,4145.2,0.4348]
[1758760609262,4.039,4145.4,4145.1,0.02]
[1758760609462,3.0,4145.3,4145.1,0.02]
[1758760609663,4.039,4145.2,4145.1,0.02]
[1758760610484,4.039,4145.2,4145.1,0.4548]
[1758760610887,3.0,4145.6,4145.1,0.02]
[1758760611095,3.0,4145.4,4145.1,0.02]
[1758760611274,4.039,4145.3,4145.1,0.02]
[1758760611675,4.039,4145.2,4145.1,0.02]
[1758760613313,4.039,4145.2,4145.1,2.43248703]
[1758760613511,4.039,4145.2,4145.1,0.4548]
[1758760613674,4.039,4145.2,4145.1,0.02]
[1758760614573,0.2496,4145.5,4145.1,0.02]
[1758760614773,2.009,4145.7,4145.2,0.792]
[1758760615018,2.009,4145.7,4145.6,2.41219606]
[1758760615219,0.37827351,4146.2,4145.4,0.231]
[1758760615405,3.0,4145.7,4145.6,2.41219319]
[1758760615802,3.12,4145.7,4145.6,3.63899319]
[1758760616003,22.12317098,4146.4,4145.8,2.41207969]
[1758760616004,3.12,4145.9,4145.8,2.41207969]
[1758760616319,0.12,4145.9,4145.8,0.4348]
[1758760616497,4.16,4145.9,4145.8,2.84687969]
[1758760616882,4.16,4145.9,4145.7,2.41213787]
[1758760617282,4.16,4145.9,4145.6,0.792]
[1758760617591,4.16,4145.9,4145.7,0.792]
[1758760617922,4.04,4145.8,4145.7,3.20412726]
[1758760618515,0.12,4145.9,4145.8,2.41207969]
[1758760618715,0.12,4145.9,4145.8,3.86987969]
[1758760618938,4.16,4145.9,4145.8,3.86987969]
[1758760619750,4.04,4146.0,4145.9,0.792]
[1758760620050,4.04,4146.0,4145.7,3.20413744]
[1758760620232,4.04,4146.0,4145.4,0.792]
[1758760620434,4.04,4146.0,4145.9,2.41202151]
[1758760620637,4.04,4146.0,4145.9,3.20402151]
[1758760620837,3.0,4145.9,4145.2,0.4675]
[1758760621043,4.04,4145.8,4145.4,2.41225529]
[1758760621236,4.04,4145.8,4145.5,2.41225387]
[1758760621419,0.2251,4145.7,4145.5,2.41225387]
[1758760621620,4.04,4145.6,4145.3,0.792]
[1758760622214,7.2651,4145.6,4145.5,2.41225425]
[1758760622414,7.2651,4145.6,4145.4,2.41230012]
[1758760622752,7.2651,4145.6,4145.2,3.20442052]
[1758760622927,7.2651,4145.6,4145.1,3.22648456]
[1758760623460,0.2251,4145.5,4145.1,3.22648456]
[1758760623667,4.7375,4145.4,4145.1,0.022]
[1758760624023,0.2251,4145.3,4145.1,0.022]
[1758760624238,4.04,4145.2,4145.1,0.022]
[1758760624552,4.7375,4145.2,4145.1,0.022]
[1758760625133,4.2651,4145.2,4145.1,0.022]
[1758760625956,4.7375,4145.2,4145.1,0.022]
[1758760626168,10.14992883,4145.2,4145.1,0.022]
[1758760626371,3.0,4145.1,4144.6,0.002]
[1758760626558,3.0,4145.1,4144.2,0.005]
[1758760626559,25.12317098,4144.7,4144.2,0.005]
[1758760626758,6.05,4144.6,4144.2,0.005]
[1758760626959,2.41295273,4144.3,4144.2,0.005]
[1758760627140,9.45295273,4144.3,4144.2,0.005]
[1758760627340,10.15045273,4144.3,4144.2,0.005]
[1758760627763,7.7375,4144.3,4144.2,0.005]
[1758760627937,10.15045273,4144.3,4144.2,0.005]
[1758760628549,5.41301095,4144.2,4144.1,0.02]
[1758760628750,27.53618193,4144.2,4144.1,0.02]
[1758760628949,2.41330212,4143.7,4143.6,0.003]
[1758760629252,2.41349102,4143.4,4142.3,0.7009]
[1758760629449,25.12317098,4143.2,4142.5,2.41398143]
[1758760629642,25.12317098,4143.2,4142.7,0.792]
[1758760629839,25.82067098,4143.2,4142.5,0.4675]
[1758760630377,3.0,4143.1,4142.5,2.41395243]
[1758760630537,4.04,4143.0,4142.5,2.41395243]
[1758760630954,4.04,4143.0,4142.6,2.41389716]
[1758760631162,4.04,4143.0,4142.5,2.4140012]
[1758760631371,2.01,4142.9,4142.5,2.4140012]
[1758760631565,22.12317098,4143.5,4142.8,2.41382515]
[1758760631895,9.281,4143.4,4142.7,2.41387473]
[1758760632304,9.281,4143.4,4142.5,0.4719]
[1758760632455,3.0,4143.2,4142.3,0.792]
[1758760632764,3.0999351,4143.3,4142.5,2.41399909]
[1758760632765,3.0,4143.0,4142.5,2.41399909]
[1758760632961,4.271,4142.9,4142.5,2.41399428]
[1758760633288,4.271,4142.9,4142.5,2.41398754]
[1758760633456,4.041,4142.9,4142.8,2.41382639]
[1758760633655,4.041,4142.9,4142.6,0.4719]
[1758760633861,4.271,4142.9,4142.3,1.2639]
[1758760634183,4.271,4142.9,4142.2,0.2478]
[1758760634184,0.6864,4142.8,4142.2,2.41414944]
[1758760634493,3.0,4142.6,4142.1,1.2839]
[1758760634787,3.0,4142.4,4142.3,3.20611776]